{"text_format":"1","workbook":"xlsx","n_sheets":2,"sheets":["Main","자료입력"],"not_rendered":{"charts":0,"images":22,"macros":1,"external_links":0,"defined_names":0,"comments":0,"pivot_tables":0},"unopened":[],"bounds":{"document_bytes":16777216,"sheet_cells":100000,"rows_first":2000,"rows_last":500,"rows_between":2000,"halvings":0,"cell_chars":16384,"cell_head_chars":4096},"cells_cut":0,"cells_raw":0,"read":"whole","date_system":"1900"}

{"sheet":"Main","index":0,"n_rows":0,"n_cols":0,"rows_kept":0,"cut":false,"hidden":false,"merged":[]}

{"sheet":"자료입력","index":1,"n_rows":204,"n_cols":3,"rows_kept":204,"cut":false,"hidden":true,"merged":[[0,0,0,1]]}
["□ 학교운영위원회 정보자료 입력"]
["구  분","자료 입력","비  고"]
["학교명","천안희망초등학교","정식학교명칭입력"]
["우편번호",31115]
["주소","충청남도 천안시 동남구 단대로 21-7","도로명주소입력"]
["전화번호","041-622-6422","041-111-1111"]
["팩스번호","041-622-6423","041-111-1111"]
["홈페이지주소","http://heemang.caees.kr"]
["학년도",2021,"숫자(해당 학년도)"]
["위원회기수",1,"숫자(위원회 구성 기수)"]
["회차",7,"숫자(회의 회차)"]
["위원수",{"$f":"B23+B32+B39","v":10},"자동계산/숫자(운영위원 수)"]
["회의구분","임시회","정기회/임시회"]
["회의일자","2021-07-07","날짜형식입력(2020-01-01)"]
["회의요일",{"$f":"TEXT(WEEKDAY(B14,1),\"aaa\")","v":"수"},"자동계산/요일"]
["회의시간","15:30","서식텍스트/시간형식입력(17:30)"]
["회의장소","2층 회의실","텍스트"]
["담당자","임혜민","담당자성명"]
["간사","정용훈","간사 또는 행정실장명"]
["위원장","박해옥","위원장성명"]
["부위원장","남경희","부위원장성명"]
["학교장","이태연","교장성명"]
["학부모위원수",{"$f":"COUNTA(B24:B31)","v":5},"자동계산"]
["학부모위원1","박해옥","텍스트"]
["학부모위원2","박복영","텍스트"]
["학부모위원3","이신호","텍스트"]
["학부모위원4","이형근","텍스트"]
["학부모위원5","장우진","텍스트"]
["학부모위원6",null,"텍스트"]
["학부모위원7",null,"텍스트"]
["학부모위원8",null,"텍스트"]
["교원위원수",{"$f":"COUNTA(B33:B38)","v":4},"자동계산"]
["교원위원1","이태연","텍스트"]
["교원위원2","이강민","텍스트"]
["교원위원3","박은주","텍스트"]
["교원위원4","이경자","텍스트"]
["교원위원5",null,"텍스트"]
["교원위원6",null,"텍스트"]
["지역위원수",{"$f":"COUNTA(B40:B43)","v":1},"자동계산"]
["지역위원1","남경희","텍스트"]
["지역위원2",null,"텍스트"]
["지역위원3",null,"텍스트"]
["지역위원4",null,"텍스트"]
["소집공고(문)번호",3,"숫자"]
["(소집내부기안)문서번호",7,"숫자"]
["(참석요청기안)문서번호",8,"숫자"]
["(처리결과이송)문서번호",9,"숫자"]
["공고일자","2021-06-30","날짜형식입력(2020-01-01)"]
["공고요일",{"$f":"TEXT(WEEKDAY(B48,1),\"aaa\")","v":"수"},"자동계산"]
["안건제안일자","2021-06-30","날짜형식입력(2020-01-01)"]
["안건제안요일",{"$f":"TEXT(WEEKDAY(B50,1),\"aaa\")","v":"수"},"자동계산"]
["안건처리일자","2021-07-08","날짜형식입력(2020-01-01)"]
["안건처리요일",{"$f":"TEXT(WEEKDAY(B52,1),\"aaa\")","v":"목"},"자동계산"]
["안건수",{"$f":"COUNTA(B55:B84)","v":10},"자동계산"]
[{"$f":"\"안건\" & B85 & \"호\"","v":"안건76호"},"2021학년도 천안희망초등학교 교원능력개발평가관리위원회 규정안","텍스트"]
[{"$f":"\"안건\" & B86 & \"호\"","v":"안건77호"},"2021학년도 천안희망초등학교 학생생활규정 개정안","텍스트"]
["안건78호","2021학년도 쌈지도서관 도서 구입안 ","텍스트"]
["안건79호","2021학년도 2학기 방과후학교 세부 운영 계획안","텍스트"]
["안건80호","2021학년도 2학기 방과후학교 교재 및 교구 심의안","텍스트"]
["안건81호","2021학년도 여름방학 방과후학교 세부 운영 계획안","텍스트"]
["안건82호","2021학년도 천안희망초병설유치원 여름방학 및 방학중돌봄 운영계획안","텍스트"]
["안건83호","2021학년도 여름방학 운영계획안","텍스트"]
["안건84호","2021학년도 여름방학 돌봄교실 운영계획안","텍스트"]
["안건85호","2021학년도 제1회 학교회계 추가경정예산안","텍스트"]
["안건호",null,"텍스트"]
["안건호",null,"텍스트"]
["안건호",null,"텍스트"]
["안건호",null,"텍스트"]
["안건호",null,"텍스트"]
["안건호",null,"텍스트"]
["안건호",null,"텍스트"]
["안건호",null,"텍스트"]
["안건호",null,"텍스트"]
["안건호",null,"텍스트"]
["안건호",null,"텍스트"]
["안건호",null,"텍스트"]
["안건호",null,"텍스트"]
["안건호",null,"텍스트"]
["안건호",null,"텍스트"]
["안건호",null,"텍스트"]
["안건호",null,"텍스트"]
["안건호",null,"텍스트"]
["안건호",null,"텍스트"]
["안건호",null,"텍스트"]
["안건1번호",76,"숫자"]
["안건2번호",77,"숫자"]
["안건3번호",78,"숫자"]
["안건4번호",79,"숫자"]
["안건5번호",80,"숫자"]
["안건6번호",81,"숫자"]
["안건7번호",82,"숫자"]
["안건8번호",83,"숫자"]
["안건9번호",84,"숫자"]
["안건10번호",85,"숫자"]
["안건11번호",null,"숫자"]
["안건12번호",null,"숫자"]
["안건13번호",null,"숫자"]
["안건14번호",null,"숫자"]
["안건15번호",null,"숫자"]
["안건16번호",null,"숫자"]
["안건17번호",null,"숫자"]
["안건18번호",null,"숫자"]
["안건19번호",null,"숫자"]
["안건20번호",null,"숫자"]
["안건21번호",null,"숫자"]
["안건22번호",null,"숫자"]
["안건23번호",null,"숫자"]
["안건24번호",null,"숫자"]
["안건25번호",null,"숫자"]
["안건26번호",null,"숫자"]
["안건27번호",null,"숫자"]
["안건28번호",null,"숫자"]
["안건29번호",null,"숫자"]
["안건30번호",null,"숫자"]
[{"$f":"\"안건\" & B85 & \"호 부서\"","v":"안건76호 부서"},"연구진로부","텍스트"]
[{"$f":"\"안건\" & B86 & \"호 부서\"","v":"안건77호 부서"},"인성안전부","텍스트"]
["안건78호 부서","연구진로부","텍스트"]
["안건79호 부서","방과후복지부","텍스트"]
["안건80호 부서","방과후복지부","텍스트"]
["안건81호 부서","방과후복지부","텍스트"]
["안건82호 부서","유치원","텍스트"]
["안건83호 부서","교무부","텍스트"]
["안건84호 부서","교무부","텍스트"]
["안건85호 부서","행정실","텍스트"]
["안건호 부서",null,"텍스트"]
["안건호 부서",null,"텍스트"]
["안건호 부서",null,"텍스트"]
["안건호 부서",null,"텍스트"]
["안건호 부서",null,"텍스트"]
["안건호 부서",null,"텍스트"]
["안건호 부서",null,"텍스트"]
["안건호 부서",null,"텍스트"]
["안건호 부서",null,"텍스트"]
["안건호 부서",null,"텍스트"]
["안건호 부서",null,"텍스트"]
["안건호 부서",null,"텍스트"]
["안건호 부서",null,"텍스트"]
["안건호 부서",null,"텍스트"]
["안건호 부서",null,"텍스트"]
["안건호 부서",null,"텍스트"]
["안건호 부서",null,"텍스트"]
["안건호 부서",null,"텍스트"]
["안건호 부서",null,"텍스트"]
["안건호 부서",null,"텍스트"]
[{"$f":"\"안건\" & B85 & \"호 처리결과\"","v":"안건76호 처리결과"},"원안가결","텍스트"]
[{"$f":"\"안건\" & B86 & \"호 처리결과\"","v":"안건77호 처리결과"},"원안가결","텍스트"]
["안건78호 처리결과","원안가결","텍스트"]
["안건79호 처리결과","원안가결","텍스트"]
["안건80호 처리결과","원안가결","텍스트"]
["안건81호 처리결과","원안가결","텍스트"]
["안건82호 처리결과","원안가결","텍스트"]
["안건83호 처리결과","원안가결","텍스트"]
["안건84호 처리결과","원안가결","텍스트"]
["안건85호 처리결과","원안가결","텍스트"]
["안건호 처리결과",null,"텍스트"]
["안건호 처리결과",null,"텍스트"]
["안건호 처리결과",null,"텍스트"]
["안건호 처리결과",null,"텍스트"]
["안건호 처리결과",null,"텍스트"]
["안건호 처리결과",null,"텍스트"]
["안건호 처리결과",null,"텍스트"]
["안건호 처리결과",null,"텍스트"]
["안건호 처리결과",null,"텍스트"]
["안건호 처리결과",null,"텍스트"]
["안건호 처리결과",null,"텍스트"]
["안건호 처리결과",null,"텍스트"]
["안건호 처리결과",null,"텍스트"]
["안건호 처리결과",null,"텍스트"]
["안건호 처리결과",null,"텍스트"]
["안건호 처리결과",null,"텍스트"]
["안건호 처리결과",null,"텍스트"]
["안건호 처리결과",null,"텍스트"]
["안건호 처리결과",null,"텍스트"]
[{"$f":"\"안건\" & B114 & \"호 처리결과\"","v":"안건호 처리결과"},null,"텍스트"]
[{"$f":"\"안건\" & B85 & \"호 투표결과\"","v":"안건76호 투표결과"},"전원찬성","텍스트"]
[{"$f":"\"안건\" & B86 & \"호 투표결과\"","v":"안건77호 투표결과"},"전원찬성","텍스트"]
["안건78호 투표결과","전원찬성","텍스트"]
["안건79호 투표결과","전원찬성","텍스트"]
["안건80호 투표결과","전원찬성","텍스트"]
["안건81호 투표결과","전원찬성","텍스트"]
["안건82호 투표결과","전원찬성","텍스트"]
["안건83호 투표결과","전원찬성","텍스트"]
["안건84호 투표결과","전원찬성","텍스트"]
["안건85호 투표결과","전원찬성","텍스트"]
["안건호 투표결과","전원찬성","텍스트"]
["안건호 투표결과","전원찬성","텍스트"]
["안건호 투표결과","전원찬성","텍스트"]
["안건호 투표결과","전원찬성","텍스트"]
["안건호 투표결과","전원찬성","텍스트"]
["안건호 투표결과","전원찬성","텍스트"]
["안건호 투표결과","전원찬성","텍스트"]
["안건호 투표결과",null,"텍스트"]
["안건호 투표결과",null,"텍스트"]
["안건호 투표결과",null,"텍스트"]
["안건호 투표결과",null,"텍스트"]
["안건호 투표결과",null,"텍스트"]
["안건호 투표결과",null,"텍스트"]
["안건호 투표결과",null,"텍스트"]
["안건호 투표결과",null,"텍스트"]
["안건호 투표결과",null,"텍스트"]
["안건호 투표결과",null,"텍스트"]
["안건호 투표결과",null,"텍스트"]
["안건호 투표결과",null,"텍스트"]
["안건호 투표결과",null,"텍스트"]